bitfinex/quotes_BTCUSD_20250607
["timestamp","ask_amount","ask_price","bid_price","bid_amount"]
[1749264036504,5.34468142,104620.0,104610.0,0.41361479]
[1749264036722,5.34468235,104620.0,104610.0,0.70449479]
[1749264036946,5.32676187,104620.0,104610.0,0.70549479]
[1749264037186,5.34468053,104620.0,104610.0,0.62873777]
[1749264037421,5.32676168,104620.0,104610.0,0.62873777]
[1749264037636,5.34468004,104620.0,104610.0,0.62873777]
[1749264037840,5.34468004,104620.0,104610.0,0.62973777]
[1749264038049,4.23894194,104620.0,104610.0,0.62973777]
[1749264038256,5.37269601,104620.0,104610.0,0.62973777]
[1749264038469,5.3726972,104620.0,104610.0,0.62973777]
[1749264038707,5.37269666,104620.0,104610.0,0.62973777]
[1749264039123,5.37269653,104620.0,104610.0,0.62973777]
[1749264039337,5.37269652,104620.0,104610.0,0.62973777]
[1749264040198,5.34805834,104620.0,104610.0,0.62973777]
[1749264040411,5.36597702,104620.0,104610.0,0.62973777]
[1749264040623,5.35477784,104620.0,104610.0,0.62973777]
[1749264040837,5.36597701,104620.0,104610.0,0.62973777]
[1749264041052,5.37269651,104620.0,104610.0,0.62973777]
[1749264041269,5.3727015,104620.0,104610.0,0.62973777]
[1749264042049,5.34805834,104620.0,104610.0,0.62973777]
[1749264042276,5.3547792,104620.0,104610.0,0.62973777]
[1749264042488,5.37270152,104620.0,104610.0,0.62973777]
[1749264043674,5.34805834,104620.0,104610.0,0.66123777]
[1749264043879,5.37269945,104620.0,104610.0,0.66123777]
[1749264044060,5.35477864,104620.0,104610.0,0.66123777]
[1749264044273,5.34805834,104620.0,104610.0,0.66123777]
[1749264044482,5.36598106,104620.0,104610.0,0.66123777]
[1749264044694,5.37270208,104620.0,104610.0,0.66123777]
[1749264045135,5.37270207,104620.0,104610.0,0.66123777]
[1749264045360,4.26696397,104620.0,104610.0,0.85242408]
[1749264045569,5.34403043,104620.0,104610.0,0.85242408]
[1749264045780,5.32610772,104620.0,104610.0,0.85242408]
[1749264046017,5.33447291,104620.0,104610.0,0.85242408]
[1749264046440,5.33447309,104620.0,104610.0,0.85242408]
[1749264047310,5.32775179,104620.0,104610.0,0.85242408]
[1749264047524,5.30982865,104620.0,104610.0,0.85242408]
[1749264047734,5.33447295,104620.0,104610.0,0.85242408]
[1749264049127,5.3277523,104620.0,104610.0,0.85242408]
[1749264049345,5.30982865,104620.0,104610.0,0.85242408]
[1749264049549,5.31655002,104620.0,104610.0,0.85242408]
[1749264049759,5.33447367,104620.0,104610.0,0.85242408]
[1749264050588,5.33447367,104620.0,104610.0,0.86198339]
[1749264050793,5.33447369,104620.0,104610.0,0.86198339]
[1749264051146,5.31655002,104620.0,104610.0,0.86198339]
[1749264051367,5.33447369,104620.0,104610.0,0.86198339]
[1749264051780,5.33447369,104620.0,104610.0,0.85242408]
[1749264052184,5.33447369,104620.0,104610.0,0.86198339]
[1749264052411,5.33447349,104620.0,104610.0,0.86198339]
[1749264052676,5.32775212,104620.0,104610.0,0.86198339]
[1749264052900,5.33447342,104620.0,104610.0,0.86198339]
[1749264053134,4.22873532,104620.0,104610.0,0.86198339]
[1749264053363,5.33447388,104620.0,104610.0,0.86198339]
[1749264054044,4.22873595,104620.0,104610.0,0.86198339]
[1749264054263,5.33447405,104620.0,104610.0,0.86198339]
[1749264054946,5.32775258,104620.0,104610.0,0.86198339]
[1749264055194,5.33447392,104620.0,104610.0,0.86198339]
[1749264056068,5.32775245,104620.0,104610.0,0.86198339]
[1749264056268,5.33447434,104620.0,104610.0,0.86198339]
[1749264056714,5.32775279,104620.0,104610.0,0.86198339]
[1749264056933,5.33447439,104620.0,104610.0,0.86198339]
[1749264057828,5.30574137,104620.0,104610.0,0.86198339]
[1749264058035,5.2894616,104620.0,104610.0,0.66123777]
[1749264058239,5.27153744,104620.0,104610.0,0.67079708]
[1749264058445,5.29618316,104620.0,104610.0,0.67079708]
[1749264058655,5.278259,104620.0,104610.0,0.67079708]
[1749264058899,5.29618314,104620.0,104610.0,0.67079708]
[1749264059126,5.29618314,104620.0,104610.0,0.66123777]
[1749264059542,5.27153744,104620.0,104610.0,0.66123777]
[1749264059756,5.28946192,104620.0,104610.0,0.66123777]
[1749264059961,5.2961836,104620.0,104610.0,0.66123777]
[1749264060163,5.29618359,104620.0,104610.0,0.66123777]
[1749264060377,5.27153744,104620.0,104610.0,0.66123777]
[1749264060581,5.29618361,104620.0,104610.0,0.66123777]
[1749264060784,5.29618361,104620.0,104610.0,0.85242408]
[1749264060989,5.29618361,104620.0,104610.0,0.86198339]
[1749264061395,5.29618052,104620.0,104610.0,0.85242408]
[1749264061606,5.29618046,104620.0,104610.0,0.85242408]
[1749264061819,5.28945964,104620.0,104610.0,0.85242408]
[1749264062031,5.29618045,104620.0,104610.0,0.85242408]
[1749264063737,5.27153744,104620.0,104610.0,0.85242408]
[1749264063935,5.2961802,104620.0,104610.0,0.85242408]
[1749264064998,5.2961805,104620.0,104610.0,0.85242408]
[1749264065266,5.29618061,104620.0,104610.0,0.85242408]
[1749264065488,5.2782583,104620.0,104610.0,0.85242408]
[1749264065711,5.2961806,104620.0,104610.0,0.85242408]
[1749264065929,5.28945974,104620.0,104610.0,0.85242408]
[1749264066139,5.2961805,104620.0,104610.0,0.85242408]
[1749264066353,5.28945974,104620.0,104610.0,0.66123777]
[1749264066577,5.29618048,104620.0,104610.0,0.66123777]
[1749264066803,5.29618012,104620.0,104610.0,0.66123777]
[1749264067015,5.29617995,104620.0,104610.0,0.66123777]
[1749264067226,5.28945927,104620.0,104610.0,0.83692408]
[1749264067428,5.27153744,104620.0,104610.0,0.83692408]
[1749264067636,5.29617993,104620.0,104610.0,0.83692408]
[1749264068064,5.29618022,104620.0,104610.0,0.83692408]
[1749264068269,5.29618033,104620.0,104610.0,0.83692408]
[1749264068557,5.29618204,104620.0,104610.0,0.83692408]
[1749264068760,5.29618268,104620.0,104610.0,0.83692408]
[1749264068967,5.27153744,104620.0,104610.0,0.84648339]
[1749264069378,5.29618097,104620.0,104610.0,0.84648339]
[1749264069815,5.29618064,104620.0,104610.0,0.84648339]
[1749264070229,5.2961808,104620.0,104610.0,0.84648339]
[1749264070434,5.2961809,104620.0,104610.0,0.84648339]
[1749264071060,5.27825838,104620.0,104610.0,0.84648339]
[1749264071268,5.2961809,104620.0,104610.0,0.84648339]
[1749264071823,5.2961809,104620.0,104610.0,0.64573777]
[1749264072244,5.2894602,104620.0,104610.0,0.64573777]
[1749264072454,5.27825847,104620.0,104610.0,0.64573777]
[1749264072659,5.27153744,104620.0,104610.0,0.64573777]
[1749264072915,5.27153744,104620.0,104610.0,0.62973777]
[1749264073124,5.29618807,104620.0,104610.0,0.62973777]
[1749264073330,5.27153744,104620.0,104610.0,0.62973777]
[1749264073537,5.29618807,104620.0,104610.0,0.62973777]
[1749264074002,5.27826034,104620.0,104610.0,0.62973777]
[1749264074208,5.29618805,104620.0,104610.0,0.62973777]
[1749264074428,5.28946516,104620.0,104610.0,0.62973777]
[1749264074632,5.27153744,104620.0,104610.0,0.62973777]
[1749264074840,5.27826033,104620.0,104610.0,0.62973777]
[1749264075023,5.27153744,104620.0,104610.0,0.62973777]
[1749264075307,5.27826033,104620.0,104610.0,0.62973777]
[1749264075521,5.27160826,104620.0,104610.0,0.62973777]
[1749264075971,5.2895358,104620.0,104610.0,0.62973777]
[1749264076186,5.27833109,104620.0,104610.0,0.62973777]
[1749264076393,5.27833144,104620.0,104610.0,0.62973777]
[1749264076605,5.29625993,104620.0,104610.0,0.62973777]
[1749264076833,5.29626027,104620.0,104610.0,0.62973777]
[1749264077048,5.3565444,104620.0,104610.0,0.62989777]
[1749264077545,5.33861557,104620.0,104610.0,0.62989777]
[1749264077752,5.35654296,104620.0,104610.0,0.62989777]
[1749264078027,5.34982008,104620.0,104610.0,0.62989777]
[1749264078258,5.35654295,104620.0,104610.0,0.62989777]
[1749264079074,5.35654185,104620.0,104610.0,0.62989777]
[1749264079553,5.35654186,104620.0,104610.0,0.62989777]
[1749264079737,5.34981898,104620.0,104610.0,0.62989777]
[1749264079946,5.35654144,104620.0,104610.0,0.62989777]
[1749264080154,5.33189239,104620.0,104610.0,0.62989777]
[1749264080808,5.35654119,104620.0,104610.0,0.62989777]
[1749264081022,5.33189239,104620.0,104610.0,0.62989777]
[1749264081231,5.34981879,104620.0,104610.0,0.62989777]
[1749264081440,5.35654119,104620.0,104610.0,0.62989777]
[1749264081662,5.33861479,104620.0,104610.0,0.62989777]
[1749264081871,5.3479788,104620.0,104610.0,0.62989777]
[1749264082097,5.34797879,104620.0,104610.0,0.62989777]
[1749264082306,5.35470119,104620.0,104610.0,0.62989777]
[1749264082519,5.35470109,104620.0,104610.0,0.62989777]
[1749264082730,5.35470094,104620.0,104610.0,0.62989777]
[1749264082958,5.34797843,104620.0,104610.0,0.62989777]
[1749264083174,5.33005239,104620.0,104610.0,0.62989777]
[1749264083840,5.33677446,104620.0,104610.0,0.62989777]
[1749264084058,5.34797792,104620.0,104610.0,0.62989777]
[1749264084321,5.33677446,104620.0,104610.0,0.62889777]
[1749264084541,6.29095246,104620.0,104610.0,0.62817777]
[1749264084766,6.33464786,104620.0,104610.0,0.62817777]
[1749264084971,6.31434217,104620.0,104610.0,0.62817777]
[1749264085177,2.38722086,104620.0,104610.0,0.62817777]
[1749264085382,6.3210633,104620.0,104610.0,0.62817777]
[1749264085599,6.35926931,104620.0,104610.0,0.62817777]
[1749264086032,5.80637224,104620.0,104610.0,0.62817777]
[1749264086245,5.7996511,104620.0,104610.0,0.62817777]
[1749264086455,6.34133562,104620.0,104610.0,0.62817777]
[1749264086660,6.3019458,104620.0,104610.0,0.62817777]
[1749264086862,6.29523569,104620.0,104610.0,0.62817777]
[1749264087074,6.3039475,104620.0,104610.0,0.62817777]
[1749264087906,6.30394752,104620.0,104610.0,0.62817777]
[1749264088350,6.29723602,104620.0,104610.0,0.62817777]
[1749264088560,6.30797868,104620.0,104610.0,0.62817777]
[1749264088781,6.33258779,104620.0,104610.0,0.62817777]
[1749264089209,6.33258493,104620.0,104610.0,0.62817777]
[1749264089454,6.33258327,104620.0,104610.0,0.62817777]
[1749264089694,6.33257884,104620.0,104610.0,0.62817777]
[1749264090131,6.32586971,104620.0,104610.0,0.62817777]
[1749264090557,6.30797868,104620.0,104610.0,0.62817777]
[1749264090849,6.33257891,104620.0,104610.0,0.62817777]
[1749264091056,6.33257889,104620.0,104610.0,0.62817777]
[1749264091501,6.3325789,104620.0,104610.0,0.62817777]
[1749264092058,6.32586975,104620.0,104610.0,0.62817777]
[1749264092446,6.31468783,104620.0,104610.0,0.62817777]
[1749264092649,6.3325789,104620.0,104610.0,0.62817777]
[1749264093052,6.33257713,104620.0,104610.0,0.62817777]
[1749264093411,6.31468717,104620.0,104610.0,0.62817777]
[1749264093616,6.33257648,104620.0,104610.0,0.62817777]
[1749264093817,6.33257647,104620.0,104610.0,0.62817777]
[1749264094026,6.32586798,104620.0,104610.0,0.62817777]
[1749264094230,6.33257647,104620.0,104610.0,0.62817777]
[1749264095033,6.32586671,104620.0,104610.0,0.62817777]
[1749264095252,6.31468669,104620.0,104610.0,0.62817777]
[1749264095454,6.33257472,104620.0,104610.0,0.62817777]
[1749264095923,6.33257469,104620.0,104610.0,0.62817777]
[1749264096190,4.64216754,104620.0,104610.0,0.62817777]
[1749264096396,4.9462537,104620.0,104610.0,0.86938225]
[1749264096541,5.08258062,104620.0,104610.0,0.8598233]
[1749264096746,5.09874495,104620.0,104610.0,0.8598233]
[1749264097004,5.08918701,104620.0,104610.0,0.86938234]
[1749264097184,5.08918767,104620.0,104610.0,0.8598233]
[1749264097441,5.07129742,104620.0,104610.0,0.86938243]
[1749264097657,5.08918767,104620.0,104610.0,0.86938243]
[1749264097855,5.64205672,104620.0,104610.0,0.86938243]
[1749264098208,5.62416647,104620.0,104610.0,0.86938243]
[1749264098791,5.6420565,104620.0,104610.0,0.86938243]
[1749264098990,5.62416647,104620.0,104610.0,0.86938243]
[1749264099190,5.63249829,104620.0,104610.0,0.85026408]
[1749264099419,5.63249829,104620.0,104610.0,0.85982339]
[1749264099662,5.63249829,104620.0,104610.0,0.86938261]
[1749264099868,5.60955098,104620.0,104610.0,0.86938261]
[1749264100265,5.60955085,104620.0,104610.0,0.86938261]
[1749264100506,5.59166095,104620.0,104610.0,0.86938261]
[1749264100712,5.63245576,104620.0,104610.0,0.86938261]
[1749264101105,5.6095508,104620.0,104610.0,0.86938261]
[1749264101533,5.6324557,104620.0,104610.0,0.86938261]
[1749264102252,5.60955166,104620.0,104610.0,0.86938261]
[1749264102453,5.60955166,104620.0,104610.0,0.66863708]
[1749264103734,5.59166095,104620.0,104610.0,0.66863708]
[1749264103893,5.63245642,104620.0,104610.0,0.66863708]
[1749264104309,5.61456587,104620.0,104610.0,0.66863708]
[1749264104530,5.6095515,104620.0,104610.0,0.66863708]
[1749264104916,5.59166095,104620.0,104610.0,0.66863708]
[1749264105113,5.6095515,104620.0,104610.0,0.66863708]
[1749264105335,5.61456632,104620.0,104610.0,0.86938261]
[1749264105561,5.61791601,104620.0,104610.0,0.87894156]
[1749264105759,5.60002547,104620.0,104610.0,0.87894156]
[1749264105983,5.5771201,104620.0,104610.0,0.87894156]
[1749264106181,5.5771201,104620.0,104610.0,0.87894174]
[1749264106419,5.61791691,104620.0,104610.0,0.87894174]
[1749264107615,5.60002636,104620.0,104610.0,0.87894174]
[1749264107821,5.61791673,104620.0,104610.0,0.87894174]
[1749264109050,5.61791623,104620.0,104610.0,0.87894174]
[1749264109282,5.60002636,104620.0,104610.0,0.87894174]
[1749264109496,5.61791623,104620.0,104610.0,0.87894174]
[1749264110335,5.60002636,104620.0,104610.0,0.87894174]
[1749264110537,5.61791623,104620.0,104610.0,0.87894174]
[1749264110746,5.61791582,104620.0,104610.0,0.87894174]
[1749264110991,5.60002636,104620.0,104610.0,0.87894174]
[1749264111211,5.61791492,104620.0,104610.0,0.87894174]
[1749264111445,5.62747273,104620.0,104610.0,0.87894174]
[1749264111668,5.6274728,104620.0,104610.0,0.87894174]
[1749264112342,5.62747279,104620.0,104610.0,0.87894174]
[1749264112568,5.62747277,104620.0,104610.0,0.87894174]
[1749264112774,5.60958457,104620.0,104610.0,0.87894174]
[1749264113220,5.62747278,104620.0,104610.0,0.87894174]
[1749264114220,5.60958457,104620.0,104610.0,0.87894174]
[1749264114426,5.62747357,104620.0,104610.0,0.87894174]
[1749264114771,5.60958457,104620.0,104610.0,0.87894174]
[1749264115431,5.62747357,104620.0,104610.0,0.87894174]
[1749264116183,5.62747681,104620.0,104610.0,0.87894174]
[1749264116790,5.62747682,104620.0,104610.0,0.87894174]
[1749264117021,5.62747683,104620.0,104610.0,0.87894174]
[1749264118271,5.62747794,104620.0,104610.0,0.87894174]
[1749264118469,5.62747797,104620.0,104610.0,0.87894174]
[1749264119996,5.60958457,104620.0,104610.0,0.87894174]
[1749264120451,5.62748468,104620.0,104610.0,0.66863708]
[1749264120669,5.60958457,104620.0,104610.0,0.66863708]
[1749264120884,5.6341972,104620.0,104610.0,0.66863708]
[1749264121102,5.63419721,104620.0,104610.0,0.66863708]
[1749264121318,5.63419719,104620.0,104610.0,0.66863708]
[1749264121781,5.62748466,104620.0,104610.0,0.66863708]
[1749264121993,5.6162971,104620.0,104610.0,0.66863708]
[1749264122208,5.63419797,104620.0,104610.0,0.66863708]
[1749264122435,5.63419804,104620.0,104610.0,0.66863708]
[1749264122657,5.6341981,104620.0,104610.0,0.66863708]
[1749264122870,5.6341981,104620.0,104610.0,0.65907777]
[1749264123091,5.63420602,104620.0,104610.0,0.65907777]
[1749264123308,5.61629744,104620.0,104610.0,0.66863708]
[1749264123529,0.3821768,104620.0,104610.0,0.98489971]
[1749264123780,0.95200903,104620.0,104610.0,0.98489971]
[1749264124027,0.96156771,104620.0,104610.0,0.98489971]
[1749264124234,0.94365866,104620.0,104610.0,0.98489971]
[1749264124453,0.9426593,104620.0,104610.0,0.98489971]
[1749264124676,0.95856815,104620.0,104610.0,0.98489971]
[1749264125130,0.95859034,104620.0,104610.0,0.98589971]
[1749264125391,0.95859034,104620.0,104610.0,0.98789971]
[1749264125578,0.96359482,104620.0,104610.0,0.98789971]
[1749264125834,0.95403642,104620.0,104610.0,0.98789971]
[1749264126062,0.97196746,104620.0,104610.0,0.98789971]
[1749264126806,0.97195514,104620.0,104610.0,0.98789971]
[1749264127017,0.95403642,104620.0,104610.0,0.98789971]
[1749264127439,0.97195514,104620.0,104610.0,0.98789971]
[1749264127645,0.95403642,104620.0,104610.0,0.98789971]
[1749264128512,0.96239683,104620.0,104610.0,0.98789971]
[1749264128907,0.94447811,104620.0,104610.0,0.97834104]
[1749264129176,0.97195523,104620.0,104610.0,0.99745865]
[1749264129610,0.94901968,104620.0,104610.0,0.99745865]
[1749264129827,0.93110163,104620.0,104610.0,0.99745865]
[1749264130037,0.94901968,104620.0,104610.0,0.99745865]
[1749264130250,0.94901959,104620.0,104610.0,0.99745865]
[1749264130502,0.94065994,104620.0,104610.0,0.99745865]
[1749264130702,0.94901959,104620.0,104610.0,0.99745865]
[1749264130924,0.93110154,104620.0,104610.0,0.99745865]
[1749264131369,0.94901959,104620.0,104610.0,0.99745865]
[1749264132301,0.949016,104620.0,104610.0,0.99745865]
[1749264132810,0.93110154,104620.0,104610.0,0.99745865]
[1749264133069,0.9585744,104620.0,104610.0,0.99745865]
[1749264133295,0.95857366,104620.0,104610.0,0.99745865]
[1749264133500,0.94065994,104620.0,104610.0,0.99745865]
[1749264133983,0.95857366,104620.0,104610.0,0.99745865]
[1749264134186,0.95402845,104620.0,104610.0,0.98789934]
[1749264134411,0.9719428,104620.0,104610.0,0.59826058]
[1749264134623,0.97194283,104620.0,104610.0,0.97702058]
[1749264134839,0.954029,104620.0,104610.0,0.97702058]
[1749264135045,0.97194283,104620.0,104610.0,0.97702058]
[1749264135917,0.9444706,104620.0,104610.0,0.98657934]
[1749264136143,0.9444706,104620.0,104610.0,0.99613801]
[1749264136363,0.96238443,104620.0,104610.0,0.99613801]
[1749264136870,0.9623828,104620.0,104610.0,0.99613801]
[1749264137665,0.954029,104620.0,104610.0,0.98657934]
[1749264137876,0.9623828,104620.0,104610.0,0.99613801]
[1749264138091,0.93491229,104620.0,104610.0,0.99613801]
[1749264138309,0.95282449,104620.0,104610.0,0.99613801]
[1749264138751,0.95282351,104620.0,104610.0,0.99613801]
[1749264138994,0.93945408,104620.0,104610.0,0.99613801]
[1749264139209,0.92989595,104620.0,104610.0,0.99613801]
[1749264139432,0.38658488,104620.0,104610.0,0.99613801]
[1749264139621,0.38658473,104620.0,104610.0,0.99613801]
[1749264139868,0.38658469,104620.0,104610.0,0.99613801]
[1749264140079,0.39614281,104620.0,104610.0,0.99613801]
[1749264140293,0.38658469,104620.0,104610.0,0.99613801]
[1749264140511,0.93945374,104620.0,104610.0,0.99613801]
[1749264141181,0.93945155,104620.0,104610.0,0.99613801]
[1749264141404,0.92989352,104620.0,104610.0,0.99613801]
[1749264141691,0.93945155,104620.0,104610.0,0.99613801]
[1749264142121,0.93945156,104620.0,104610.0,0.99613801]
[1749264142779,0.93945098,104620.0,104610.0,0.99613801]
[1749264143231,0.9215425,104620.0,104610.0,0.99613801]
[1749264143446,0.93945098,104620.0,104610.0,0.99613801]
[1749264143668,0.38658193,104620.0,104610.0,0.99613801]
[1749264143884,0.38658193,104620.0,104610.0,1.54900706]
[1749264143885,0.34,104620.0,104610.0,1.54900706]
[1749264144104,0.34,104620.0,104610.0,0.99613801]
[1749264145196,0.34,104620.0,104610.0,1.54900706]
[1749264145904,0.34,104620.0,104610.0,0.99613801]
[1749264149384,0.33912,104620.0,104610.0,0.99613801]
[1749264153064,0.33912,104620.0,104610.0,1.27161801]
[1749264164415,0.33912,104620.0,104610.0,1.25621801]
[1749264165903,0.33912,104620.0,104610.0,1.24071801]
[1749264166342,0.90990341,104620.0,104610.0,1.24071801]
[1749264166545,0.909907,104620.0,104610.0,1.24071801]
[1749264167164,0.90990757,104620.0,104610.0,1.24071801]
[1749264167874,0.89198905,104620.0,104610.0,1.24071801]
[1749264168083,0.90990757,104620.0,104610.0,1.24071801]
[1749264169211,0.33912,104620.0,104610.0,1.24071801]
[1749264169428,0.0319,104630.0,104620.0,0.21984213]
[1749264169638,1.00577339,104640.0,104630.0,0.21026427]
[1749264169862,1.03324595,104640.0,104630.0,0.60785824]
[1749264170066,1.03324588,104640.0,104630.0,0.5983013]
[1749264170293,1.03324585,104640.0,104630.0,0.5983013]
[1749264170501,1.03324585,104640.0,104630.0,0.60785824]
[1749264170927,1.01632923,104640.0,104630.0,0.60785824]
[1749264171158,1.03423659,104640.0,104630.0,0.60785824]
[1749264171577,1.01632923,104640.0,104630.0,0.60785824]
[1749264171819,1.03423657,104640.0,104630.0,0.60785824]
[1749264172034,1.03423657,104640.0,104630.0,0.5983013]
[1749264172461,1.03423364,104640.0,104630.0,0.5983013]
[1749264172672,1.01632923,104640.0,104630.0,0.5983013]
[1749264172881,1.03623364,104640.0,104630.0,0.5983013]
[1749264173119,1.01832923,104640.0,104630.0,0.5983013]
[1749264173333,1.03623364,104640.0,104630.0,0.5983013]
[1749264173772,1.04579003,104640.0,104630.0,0.5983013]
[1749264173981,1.04579003,104640.0,104630.0,0.60785824]
[1749264173982,1.03623355,104640.0,104630.0,0.60785824]
[1749264174205,1.01712142,104640.0,104630.0,0.5983013]
[1749264174427,1.02667734,104640.0,104630.0,0.60785814]
[1749264174640,1.02667454,104640.0,104630.0,0.60785814]
[1749264174850,1.00877293,104640.0,104630.0,0.60785814]
[1749264175082,1.02667457,104640.0,104630.0,0.60785814]
[1749264175930,1.0266746,104640.0,104630.0,0.5983013]
[1749264176142,1.03623099,104640.0,104630.0,0.85577824]
[1749264176358,1.036231,104640.0,104630.0,0.85577824]
[1749264176575,1.01832932,104640.0,104630.0,0.85577824]
[1749264176789,1.03623101,104640.0,104630.0,0.85577824]
[1749264177223,1.03623101,104640.0,104630.0,0.8462213]
[1749264177909,1.01832932,104640.0,104630.0,0.8462213]
[1749264178141,1.0362301,104640.0,104630.0,0.8462213]
[1749264179842,1.03620974,104640.0,104630.0,0.85577824]
[1749264180289,1.01830922,104640.0,104630.0,0.85577824]
[1749264180718,1.03620974,104640.0,104630.0,0.8462213]
[1749264181987,1.01830922,104640.0,104630.0,0.8462213]
[1749264182208,1.03620974,104640.0,104630.0,0.8462213]
[1749264182621,1.02665335,104640.0,104630.0,0.85577814]
[1749264182845,1.03620974,104640.0,104630.0,0.85577824]
[1749264183713,1.03620966,104640.0,104630.0,0.85577824]
[1749264183922,1.01830922,104640.0,104630.0,0.85577824]
[1749264184136,1.03620957,104640.0,104630.0,0.85577824]
[1749264184561,1.01980957,104640.0,104630.0,0.85577824]
[1749264185005,1.01981045,104640.0,104630.0,0.85577824]
[1749264185434,1.01981045,104640.0,104630.0,0.86533508]
[1749264185649,0.97464195,104640.0,104630.0,0.86533508]
[1749264185867,0.96629654,104640.0,104630.0,0.86533508]
[1749264186126,0.99375391,104640.0,104630.0,0.86533508]
[1749264186344,0.9937539,104640.0,104630.0,0.86533508]
[1749264186582,0.97585265,104640.0,104630.0,0.86533508]
[1749264186795,0.96629654,104640.0,104630.0,0.86533508]
[1749264187005,0.99375388,104640.0,104630.0,0.86533508]
[1749264187220,0.97585256,104640.0,104630.0,0.86533508]
[1749264187443,1.00330831,104640.0,104630.0,0.86533508]
[1749264187650,0.98540711,104640.0,104630.0,0.86533508]
[1749264187856,1.0033083,104640.0,104630.0,0.86533508]
[1749264188061,0.97585091,104640.0,104630.0,0.86533508]
[1749264188287,0.96128314,104640.0,104630.0,0.99213456]
[1749264188488,0.95172721,104640.0,104630.0,0.99213456]
[1749264188710,0.98419769,104640.0,104630.0,0.96173456]
[1749264188918,0.9841977,104640.0,104630.0,0.96173456]
[1749264189135,0.96128315,104640.0,104630.0,0.96173456]
[1749264189349,0.94338075,104640.0,104630.0,0.96173456]
[1749264189561,0.96629589,104640.0,104630.0,0.96173456]
[1749264189773,0.37140002,104640.0,104630.0,0.97713456]
[1749264189993,0.38930232,104640.0,104630.0,0.99213456]
[1749264190406,0.37140002,104640.0,104630.0,0.99213456]
[1749264190618,0.92426907,104640.0,104630.0,0.99213456]
[1749264190837,0.94217337,104640.0,104630.0,0.99213456]
[1749264191464,0.38930432,104640.0,104630.0,0.99213456]
[1749264191885,0.92426907,104640.0,104630.0,0.99213456]
[1749264192100,0.38930432,104640.0,104630.0,0.99213456]
[1749264192316,0.94217268,104640.0,104630.0,0.99213456]
[1749264192540,0.92426907,104640.0,104630.0,0.99213456]
[1749264192746,0.93382491,104640.0,104630.0,0.99213456]
[1749264192964,0.93382482,104640.0,104630.0,0.99213456]
[1749264193181,0.92426907,104640.0,104630.0,0.99213456]
[1749264193830,0.9421751,104640.0,104630.0,0.99213456]
[1749264194044,0.93382491,104640.0,104630.0,0.99213456]
[1749264194303,0.92426907,104640.0,104630.0,0.99213456]
[1749264194972,0.9421751,104640.0,104630.0,0.99213456]
[1749264195834,0.37140002,104640.0,104630.0,0.99213456]
[1749264197124,0.389306,104640.0,104630.0,0.99213456]
[1749264197546,0.37140002,104640.0,104630.0,0.99213456]
[1749264197772,0.38931359,104640.0,104630.0,0.99213456]
[1749264198935,0.37140002,104640.0,104630.0,0.99213456]
[1749264202391,0.93382482,104640.0,104630.0,0.96169456]
[1749264202830,0.92426907,104640.0,104630.0,0.96169456]
[1749264203471,0.93382491,104640.0,104630.0,0.96169456]
[1749264204802,0.92426907,104640.0,104630.0,0.96169456]
[1749264205261,0.93382482,104640.0,104630.0,0.96169456]
[1749264206765,0.94338075,104640.0,104630.0,0.96169456]
[1749264207184,0.93382482,104640.0,104630.0,0.96169456]
[1749264207382,0.93382482,104640.0,104630.0,1.23713456]
[1749264210198,0.94338075,104640.0,104630.0,1.23713456]
[1749264210831,0.93382482,104640.0,104630.0,1.23713456]
[1749264214989,0.94338075,104640.0,104630.0,1.23713456]
[1749264215199,0.94338066,104640.0,104630.0,1.23713456]
[1749264218705,0.97508066,104640.0,104630.0,1.23713456]
[1749264218908,0.95878066,104640.0,104630.0,1.23713456]
[1749264219050,0.94338066,104640.0,104630.0,1.23713456]
[1749264220454,0.95293668,104640.0,104630.0,1.23713456]
[1749264220614,0.95293659,104640.0,104630.0,1.23713456]
[1749264220828,0.93382482,104640.0,104630.0,1.23713456]
[1749264221045,0.94338075,104640.0,104630.0,1.23713456]
[1749264226835,0.95293686,104640.0,104630.0,1.23713456]
[1749264227046,0.94338075,104640.0,104630.0,1.23713456]
[1749264228692,0.95175049,104640.0,104630.0,1.23713456]
[1749264228904,0.94338075,104640.0,104630.0,1.23713456]
[1749264229738,0.93382482,104640.0,104630.0,1.23713456]
[1749264229941,0.94338075,104640.0,104630.0,1.23713456]
[1749264233244,0.38095577,104640.0,104630.0,1.26893456]
[1749264233649,0.38095577,104640.0,104630.0,1.25253456]
[1749264233854,0.3905117,104640.0,104630.0,1.23713456]
[1749264234061,0.38095577,104640.0,104630.0,1.23713456]
[1749264234280,0.39051161,104640.0,104630.0,1.23713456]
[1749264236881,0.38095577,104640.0,104630.0,1.23713456]
[1749264237100,0.3905117,104640.0,104630.0,1.23713456]
[1749264239435,0.03140002,104640.0,104630.0,1.82060361]
[1749264240287,0.02840002,104640.0,104630.0,1.82060361]
[1749264240705,0.02840002,104640.0,104630.0,1.82460361]
[1749264241129,0.02840002,104640.0,104630.0,1.82860361]
[1749264242847,0.02840002,104640.0,104630.0,1.27573456]
[1749264254287,0.58126907,104640.0,104630.0,1.27573456]
[1749264254697,0.58126907,104640.0,104630.0,0.95505456]
[1749264254908,0.61286907,104640.0,104630.0,0.86669456]
[1749264255125,1.534406,104640.0,104630.0,0.83802366]
[1749264255355,1.52484989,104640.0,104630.0,0.8571378]
[1749264255556,1.52484989,104640.0,104630.0,1.2354578]
[1749264255768,1.50573812,104640.0,104630.0,1.2354578]
[1749264256012,1.51529387,104640.0,104630.0,1.2354578]
[1749264257481,0.96242482,104640.0,104630.0,1.2354578]
[1749264257938,1.51529387,104640.0,104630.0,1.2354578]
[1749264258363,1.50573812,104640.0,104630.0,1.2354578]
[1749264259296,1.51529396,104640.0,104630.0,1.2354578]
[1749264259641,1.50573812,104640.0,104630.0,1.2354578]
[1749264259831,1.51529396,104640.0,104630.0,1.2354578]
[1749264260066,1.50573812,104640.0,104630.0,1.2354578]
[1749264261001,1.50573812,104640.0,104630.0,0.8571378]
[1749264261249,1.51529387,104640.0,104630.0,1.2354578]
[1749264261466,1.52484971,104640.0,104630.0,0.8571378]
[1749264261688,1.55351823,104640.0,104630.0,0.84758078]
[1749264261911,5.6251802,104640.0,104630.0,1.10082976]
[1749264262135,5.66600073,104640.0,104630.0,1.11038724]
[1749264262384,5.615624,104640.0,104630.0,0.53136]
[1749264262610,5.65644455,104640.0,104630.0,0.90568]
[1749264262823,5.6564458,104640.0,104630.0,0.90868]
[1749264263054,5.63854486,104640.0,104630.0,0.90468]
[1749264263274,5.63854486,104640.0,104630.0,0.90768]
[1749264263503,5.65644622,104640.0,104630.0,0.90768]
[1749264264360,5.65644622,104640.0,104630.0,0.61768]
[1749264264586,5.66315927,104640.0,104630.0,0.90768]
[1749264264835,5.64525794,104640.0,104630.0,0.90768]
[1749264265050,5.65644641,104640.0,104630.0,0.90768]
[1749264265271,5.63854486,104640.0,104630.0,0.90768]
[1749264265479,5.6709873,104640.0,104630.0,0.90768]
[1749264265686,5.67098676,104640.0,104630.0,0.90468]
[1749264265927,5.67769965,104640.0,104630.0,0.90668]
[1749264266147,5.6597986,104640.0,104630.0,0.90468]
[1749264266348,5.67769965,104640.0,104630.0,0.90168]
[1749264266553,5.65308571,104640.0,104630.0,0.90268]